bitfinex/quotes_ETHUSD_20250518
["timestamp","ask_amount","ask_price","bid_price","bid_amount"]
[1747611611230,0.7648,2453.3,2452.5,1.26480525]
[1747611611437,4.07713513,2452.8,2452.6,0.8047]
[1747611611644,4.07609104,2453.4,2452.9,0.55]
[1747611611843,4.07611513,2453.4,2453.1,0.55]
[1747611612166,0.7648,2454.3,2453.3,0.55]
[1747611612167,13.06497962,2454.0,2453.3,0.55]
[1747611612367,4.07497962,2454.0,2453.4,0.8274]
[1747611612567,4.83930446,2454.3,2453.5,8.985]
[1747611612767,4.07531789,2453.8,2453.6,1.10855533]
[1747611613171,4.07508268,2454.0,2453.6,1.10855533]
[1747611613350,4.07508268,2454.0,2453.7,0.12731533]
[1747611613544,4.45175164,2454.8,2453.7,0.12731533]
[1747611613749,4.07398354,2454.6,2453.9,0.8314]
[1747611613951,4.07398354,2454.6,2454.0,8.985]
[1747611613952,4.07481357,2454.1,2454.0,8.985]
[1747611616274,8.0,2454.7,2454.1,0.55]
[1747611616438,4.07345168,2455.0,2454.1,0.55]
[1747611616749,4.07413948,2454.6,2454.1,0.55]
[1747611616946,4.06612123,2454.6,2454.3,0.55]
[1747611617258,0.8298,2455.2,2454.3,0.55]
[1747611617259,4.07371366,2454.8,2454.3,0.55]
[1747611617638,4.07381757,2454.7,2454.3,0.55]
[1747611617847,4.07398846,2454.6,2454.3,0.55]
[1747611618081,4.07300402,2455.2,2454.3,0.55]
[1747611618386,4.07431551,2454.4,2454.3,0.55]
[1747611618595,4.07448152,2454.3,2454.2,1.3587]
[1747611618739,4.07448152,2454.3,2454.1,0.33252037]
[1747611618740,4.07464754,2454.2,2454.1,0.33252037]
[1747611619051,4.07464754,2454.2,2454.1,9.31552037]
[1747611620637,4.07464754,2454.2,2454.1,8.983]
[1747611622053,4.07453413,2454.3,2454.1,8.983]
[1747611622255,4.0737658,2454.8,2454.4,0.55]
[1747611622486,0.8218,2455.3,2454.4,0.55]
[1747611622643,0.8218,2455.7,2454.6,0.55]
[1747611622843,4.07306032,2455.2,2454.7,13.05579455]
[1747611623179,4.07306032,2455.2,2455.1,0.55]
[1747611623403,0.8218,2455.7,2455.1,0.55]
[1747611623404,4.07285359,2455.3,2455.1,0.55]
[1747611623546,4.05367991,2455.2,2455.1,0.55]
[1747611623750,4.05367991,2455.2,2455.1,9.532]
[1747611624281,4.04596789,2455.2,2455.1,9.532]
[1747611624451,4.0728952,2455.3,2455.1,9.532]
[1747611624657,4.07298794,2455.2,2455.1,9.532]
[1747611625854,4.07298794,2455.2,2455.1,8.982]
[1747611628573,4.06179995,2455.2,2455.1,8.982]
[1747611628882,13.00300309,2455.8,2454.9,0.84867932]
[1747611628883,4.07331975,2455.0,2454.9,0.84867932]
[1747611629178,4.07331975,2455.0,2454.9,9.53]
[1747611629387,4.07321046,2455.1,2454.9,11.45147793]
[1747611629755,4.07182702,2455.9,2454.9,11.45147793]
[1747611629956,4.07289821,2455.3,2455.0,0.55]
[1747611630254,4.07299377,2455.2,2455.0,0.55]
[1747611630468,4.072508,2455.5,2455.4,0.55]
[1747611630684,4.072508,2455.5,2455.4,9.53]
[1747611631688,4.07265618,2455.4,2455.3,0.8103]
[1747611631890,4.07315384,2455.1,2454.9,1.11446196]
[1747611632056,4.07265618,2455.4,2455.3,8.98]
[1747611632672,4.07258111,2455.5,2455.3,9.53]
[1747611633165,4.07265618,2455.4,2455.3,9.53]
[1747611633407,4.07189355,2455.9,2455.4,4.07264526]
[1747611633580,0.14,2456.1,2455.7,4.07209477]
[1747611633882,4.21152862,2456.1,2455.9,0.55]
[1747611634095,4.21152862,2456.1,2455.8,26.57]
[1747611634096,4.07166123,2456.0,2455.8,26.57]
[1747611634302,4.07182702,2455.9,2455.8,26.57]
[1747611634504,4.07182702,2455.9,2455.8,17.59]
[1747611634860,4.07199283,2455.8,2455.7,8.979]
[1747611635171,4.12289541,2455.8,2455.7,8.979]
[1747611635573,4.07265618,2455.4,2455.3,9.529]
[1747611635769,4.07265618,2455.4,2455.3,8.979]
[1747611635974,4.07298794,2455.2,2455.1,17.589]
[1747611636183,4.07298794,2455.2,2455.1,26.568]
[1747611636383,4.06598839,2455.2,2455.1,26.568]
[1747611637295,4.07284944,2455.3,2454.8,0.33252037]
[1747611637296,4.07348568,2454.9,2454.8,0.33252037]
[1747611637502,4.07348568,2454.9,2454.8,9.31152037]
[1747611637790,4.07348568,2454.9,2454.8,8.979]
[1747611639299,4.07414952,2454.5,2454.4,17.588]
[1747611639486,4.07414952,2454.5,2454.4,26.489]
[1747611640363,4.74718306,2455.6,2454.5,1.3673]
[1747611640689,4.74718306,2455.6,2454.6,4.07388222]
[1747611640690,4.8951445,2455.6,2454.6,4.07388222]
[1747611640896,4.8951445,2455.6,2454.5,1.3673]
[1747611641194,4.07267264,2455.4,2454.5,5.44138481]
[1747611641400,4.07326792,2455.1,2454.6,7.95203447]
[1747611641595,4.07326792,2455.1,2454.8,0.55]
[1747611641802,4.07331975,2455.0,2454.9,8.901]
[1747611642001,4.07331975,2455.0,2454.9,9.451]
[1747611642571,4.07331975,2455.0,2454.9,8.901]
[1747611642772,0.8228,2455.6,2454.9,8.901]
[1747611642973,0.8009,2455.9,2455.0,0.8901]
[1747611643275,8.0,2455.8,2455.0,0.55]
[1747611643475,4.07314137,2455.2,2455.0,0.55]
[1747611643797,4.07315384,2455.1,2455.0,0.55]
[1747611644173,4.07331975,2455.0,2454.9,8.901]
[1747611644379,4.06209126,2455.0,2454.9,8.901]
[1747611644592,4.07315384,2455.1,2454.6,0.33252037]
[1747611644800,4.07381757,2454.7,2454.6,0.33252037]
[1747611645107,4.07381757,2454.7,2454.6,9.23352037]
[1747611646077,4.07381757,2454.7,2454.6,8.901]
[1747611646699,4.07381757,2454.7,2454.6,9.02824291]
[1747611647308,4.07381757,2454.7,2454.6,8.901]
[1747611648523,4.07414952,2454.5,2454.4,17.588]
[1747611649129,4.07414952,2454.5,2454.4,26.49]
[1747611650637,4.06610797,2454.5,2454.4,26.49]
[1747611651132,4.07514568,2453.9,2453.8,0.33252037]
[1747611651313,4.07514568,2453.9,2453.8,9.23452037]
[1747611651517,4.88944568,2453.9,2453.8,0.33252037]
[1747611651679,4.88944568,2453.9,2453.8,9.23452037]
[1747611652615,4.07531176,2453.8,2453.7,17.589]
[1747611652803,4.07531176,2453.8,2453.7,26.492]
[1747611654793,12.07531176,2453.8,2453.7,17.589]
[1747611654992,12.85511176,2453.8,2453.7,17.589]
[1747611655618,12.84706081,2453.8,2453.7,17.589]
[1747611656399,12.06726081,2453.8,2453.7,17.589]
[1747611657728,4.07664084,2453.0,2452.9,17.99233746]
[1747611657890,4.07680704,2452.9,2452.8,8.904]
[1747611658090,12.07680704,2452.9,2452.8,8.904]
[1747611658290,12.07680704,2452.9,2452.6,0.33252037]
[1747611658291,4.07713947,2452.7,2452.6,0.33252037]
[1747611658524,12.89773947,2452.7,2452.6,0.33252037]
[1747611658923,16.82212253,2452.7,2452.6,0.33252037]
[1747611659492,16.82212253,2452.7,2452.0,8.905]
[1747611659493,12.07747196,2452.5,2452.0,8.905]
[1747611659794,20.87263823,2452.4,2452.0,8.905]
[1747611660230,21.66643823,2452.4,2452.0,8.905]
[1747611660950,21.66643823,2452.4,2451.6,8.907]
[1747611661351,12.87143823,2452.4,2451.6,8.907]
[1747611661770,4.07752711,2452.5,2452.1,8.907]
[1747611661941,4.07763823,2452.4,2452.1,8.907]
[1747611662832,0.7705,2452.9,2452.2,0.55]
[1747611663049,4.07721893,2452.7,2452.3,1.77166132]
[1747611663255,8.787,2453.1,2452.3,1.77166132]
[1747611663554,4.07678217,2453.0,2452.4,0.55]
[1747611663724,4.07673718,2453.0,2452.4,22.22754438]
[1747611663922,4.07747196,2452.5,2452.4,17.6]
[1747611664454,0.05096738,2453.1,2452.4,17.6]
[1747611664455,8.792,2453.1,2452.5,0.55]
[1747611664667,4.07694835,2452.9,2452.6,8.908]
[1747611665024,0.7705,2453.3,2452.6,8.908]
[1747611665025,4.07614233,2453.3,2452.6,8.908]
[1747611665444,4.07693284,2452.9,2452.6,8.908]
[1747611665651,0.7705,2453.6,2452.9,0.55]
[1747611665819,0.7705,2454.3,2453.2,0.55]
[1747611666023,4.07563819,2453.7,2453.3,8.908]
[1747611666253,0.7705,2454.3,2453.5,0.55]
[1747611666435,4.07523034,2453.9,2453.6,0.8201]
[1747611667660,4.07507388,2454.0,2453.6,0.8201]
[1747611667836,4.07453872,2454.3,2453.7,0.55]
[1747611668050,4.07464754,2454.2,2453.9,0.55]
[1747611668236,4.07464754,2454.2,2454.0,0.9458]
[1747611668455,0.7799,2454.9,2454.1,0.55]
[1747611668761,0.7799,2454.9,2453.8,8.797]
[1747611668762,4.07507489,2454.0,2453.8,8.797]
[1747611669060,4.07507489,2454.0,2453.9,8.795]
[1747611669958,4.07507489,2454.0,2453.6,0.8201]
[1747611669959,4.07547784,2453.7,2453.6,0.8201]
[1747611670164,4.07547784,2453.7,2453.4,18.95543039]
[1747611670165,4.07531176,2453.8,2453.7,8.795]
[1747611671542,4.07581006,2453.5,2453.4,26.396]
[1747611671742,4.07581006,2453.5,2452.9,0.43888843]
[1747611671964,4.07630849,2453.2,2453.0,8.794]
[1747611672964,4.07647466,2453.1,2453.0,8.794]
[1747611673172,0.8099,2454.0,2453.1,0.55]
[1747611673367,4.07544743,2453.8,2453.3,0.55]
[1747611673753,4.07549054,2453.7,2453.3,0.55]
[1747611673945,4.07597619,2453.4,2453.3,0.55]
[1747611674265,4.07614233,2453.3,2453.2,0.8311]
[1747611674434,4.07614233,2453.3,2453.2,9.6251]
[1747611674847,24.90775227,2459.1,2453.3,0.55]
[1747611674848,4.07531427,2453.8,2453.3,0.55]
[1747611675049,4.07525044,2453.9,2453.3,9.409]
[1747611675249,4.07508981,2454.0,2453.5,0.55]
[1747611675595,4.07531176,2453.8,2453.7,0.55]
[1747611675868,4.07531176,2453.8,2453.7,9.344]
[1747611677082,4.07521539,2453.9,2453.7,10.53897256]
[1747611677244,4.07476694,2454.2,2453.7,10.53897256]
[1747611677444,4.07414952,2454.5,2453.7,10.53897256]
[1747611677650,4.07490264,2454.1,2453.7,10.53897256]
[1747611677960,4.12524947,2454.4,2453.7,10.53897256]
[1747611678352,4.07496997,2454.1,2453.9,0.55]
[1747611678567,4.07497962,2454.0,2453.9,0.55]
[1747611678737,4.07474877,2454.2,2454.0,0.7765]
[1747611679132,4.07474877,2454.2,2454.1,0.55]
[1747611680293,4.07455366,2454.3,2454.1,0.55]
[1747611680502,4.07400823,2454.6,2454.2,8.793]
[1747611680662,8.813,2455.0,2454.3,1.4843]
[1747611680857,4.07407439,2454.6,2454.3,1.4843]
[1747611681480,0.8127,2455.2,2454.3,1.4843]
[1747611681662,0.7867,2455.6,2454.8,0.55]
[1747611681996,3.82641484,2456.1,2454.8,0.55]
[1747611681997,0.7867,2455.9,2455.2,0.55]
[1747611682306,4.07227099,2455.7,2455.4,0.55]
[1747611682460,4.07234221,2455.6,2455.5,9.342]
[1747611682992,4.07232448,2455.6,2455.5,8.792]
[1747611683689,4.07166123,2456.0,2455.6,0.55]
[1747611683890,4.07182702,2455.9,2455.8,0.55]
[1747611684484,4.07265618,2455.4,2455.3,1.3216]
[1747611684980,4.07265618,2455.4,2455.3,9.34]
[1747611685181,4.07265618,2455.4,2455.3,8.79]
[1747611685381,4.07348568,2454.9,2454.7,9.5635]
[1747611685615,4.07348568,2454.9,2454.8,26.69741424]
[1747611685797,4.07348568,2454.9,2454.8,17.596]
[1747611685996,4.07348568,2454.9,2454.8,26.386]
[1747611686597,0.7692,2455.6,2454.9,0.55]
[1747611686893,4.0728158,2455.4,2455.1,0.55]
[1747611687096,4.07298794,2455.2,2455.1,0.55]
[1747611687262,4.07348568,2454.9,2454.8,17.596]
[1747611687463,4.07348568,2454.9,2454.8,26.386]
[1747611688800,4.07348568,2454.9,2454.8,26.385]
[1747611689767,4.07481357,2454.1,2453.9,0.7619]
[1747611689967,4.07481357,2454.1,2454.0,26.379]
[1747611690277,4.07481357,2454.1,2454.0,26.929]
[1747611690625,4.07481357,2454.1,2454.0,27.26917221]
[1747611691101,4.07481357,2454.1,2454.0,26.71917221]
[1747611691317,4.07481357,2454.1,2454.0,27.26917221]
[1747611691483,4.07481357,2454.1,2454.0,26.71917221]
[1747611692675,4.07481357,2454.1,2454.0,9.12917221]
[1747611694112,0.7525,2454.8,2454.1,0.55]
[1747611694420,4.07331975,2455.0,2454.3,0.55]
[1747611694620,0.7525,2455.1,2454.3,0.55]
[1747611694809,4.07420037,2454.5,2454.3,0.55]
[1747611695009,0.7525,2455.1,2454.3,0.55]
[1747611695211,4.07398354,2454.6,2454.5,0.55]
[1747611695395,4.07343628,2455.0,2454.5,9.34]
[1747611695600,4.07366721,2454.8,2454.5,9.34]
[1747611696002,4.07398354,2454.6,2454.5,0.55]
[1747611696203,4.07398354,2454.6,2454.5,9.34]
[1747611696416,4.07341799,2455.0,2454.5,11.23437]
[1747611696616,4.07181753,2456.0,2454.9,0.55]
[1747611696790,4.07168109,2456.0,2455.1,0.55]
[1747611696995,4.07168109,2456.0,2455.3,0.55]
[1747611697195,4.07242356,2455.6,2455.3,0.55]
[1747611697420,4.07222736,2455.7,2455.5,0.55]
[1747611697622,4.07222736,2455.7,2455.6,9.34]
[1747611699226,4.2115268,2456.1,2455.2,17.591]
[1747611699435,4.07215865,2455.7,2455.6,8.843]
[1747611701024,0.14,2456.1,2455.6,19.0375]
[1747611701195,0.14,2456.1,2455.8,0.55]
[1747611701742,4.07169312,2456.0,2455.8,0.55]
[1747611702355,4.07169312,2456.0,2455.6,18.4875]
[1747611702356,4.07166123,2456.0,2455.9,8.842]
[1747611702552,4.07166123,2456.0,2455.6,0.8025]
[1747611702553,4.07215865,2455.7,2455.4,0.55]
[1747611702759,4.07232448,2455.6,2455.5,8.842]
[1747611703117,4.07265618,2455.4,2455.3,1.09652037]
[1747611703353,4.07265618,2455.4,2455.3,9.17252037]
[1747611703526,4.07265618,2455.4,2455.3,9.72252037]
[1747611703857,4.07265618,2455.4,2455.3,0.33252037]
[1747611704060,4.07265618,2455.4,2455.3,9.17252037]
[1747611705054,4.90215618,2455.4,2455.3,9.17252037]
[1747611705673,12.95307092,2455.4,2455.3,9.17252037]
[1747611705943,12.90215618,2455.4,2455.3,0.33252037]
[1747611706340,4.07315384,2455.1,2455.0,8.841]
[1747611706872,4.07275443,2455.4,2455.0,10.2751]
[1747611707150,4.07239727,2455.6,2455.3,0.55]
[1747611707357,4.83389521,2456.0,2455.4,17.586]
[1747611707529,4.0722922,2455.7,2455.5,9.391]
[1747611707859,4.07232448,2455.6,2455.5,9.251]
[1747611708727,4.07232448,2455.6,2455.5,8.701]
[1747611708945,4.07249032,2455.5,2455.4,17.586]
[1747611709150,4.07249032,2455.5,2455.4,26.426]
[1747611709571,4.07249032,2455.5,2455.4,17.586]
[1747611709773,4.07249032,2455.5,2455.4,26.426]
[1747611711367,4.07218752,2455.7,2455.5,0.55]
[1747611711568,4.21151293,2456.1,2455.5,0.55]
[1747611711742,4.07228969,2455.7,2455.5,0.55]
[1747611711942,0.14,2456.1,2455.7,0.55]
[1747611712137,4.21156025,2456.1,2455.7,0.55]
[1747611712340,0.14,2456.1,2455.7,9.376]
[1747611712537,4.21157309,2456.1,2455.9,0.55]
[1747611712772,4.21157309,2456.1,2456.0,8.84]
[1747611713141,0.14,2456.1,2456.0,9.39]
[1747611713371,0.14,2456.1,2456.0,10.2125]
[1747611713581,0.14,2456.1,2456.0,10.33965691]
[1747611713772,0.14,2456.1,2456.0,11.88279344]
[1747611714344,4.21149546,2456.1,2456.0,10.33965691]
[1747611714778,4.07182702,2455.9,2455.8,1.01985]
[1747611714982,4.07182702,2455.9,2455.8,18.208]
[1747611715482,4.07182702,2455.9,2455.8,9.389]
[1747611715683,4.07182702,2455.9,2455.8,8.839]
[1747611715871,4.07199283,2455.8,2455.7,0.8214]
[1747611716177,4.07215865,2455.7,2455.6,0.33252037]
[1747611716376,4.07200862,2455.8,2455.7,8.839]
[1747611717679,4.07215865,2455.7,2455.6,0.33252037]
[1747611717879,4.07215865,2455.7,2455.6,9.17152037]
[1747611718185,4.07215865,2455.7,2455.6,8.839]
[1747611719685,4.07249032,2455.5,2455.4,26.425]
[1747611721109,12.87759032,2455.5,2455.4,26.425]
[1747611721259,4.07249032,2455.5,2455.4,8.839]
[1747611721698,4.07249032,2455.5,2455.4,9.389]
[1747611721993,4.07249032,2455.5,2455.4,10.3279]
[1747611722188,4.07249032,2455.5,2455.2,8.802]
[1747611722189,4.07331975,2455.0,2454.9,1.18923599]
[1747611722486,4.07258177,2455.5,2455.0,0.55]
[1747611722714,0.8051,2456.0,2455.2,0.55]
[1747611722859,4.2116156,2456.1,2455.4,0.55]
[1747611723225,4.2116156,2456.1,2455.5,8.839]
[1747611723359,4.07215865,2455.7,2455.6,18.134]
[1747611724090,4.07215865,2455.7,2455.6,18.26119094]
[1747611724392,4.07206289,2455.8,2455.6,18.26119094]
[1747611724611,4.07178871,2456.0,2455.6,20.27346128]
[1747611724814,4.07215865,2455.7,2455.6,18.26119094]
[1747611724991,4.07215865,2455.7,2455.6,26.974]
[1747611725790,4.07215865,2455.7,2455.6,27.10119131]
[1747611726491,4.82565865,2455.7,2455.6,0.12719131]
[1747611726703,4.07265618,2455.4,2455.3,0.33252037]
[1747611727482,4.12356599,2455.4,2455.3,0.33252037]
[1747611727679,4.07265618,2455.4,2455.3,0.33252037]
[1747611728807,12.07183148,2455.9,2455.3,0.33252037]
[1747611728808,0.14,2456.1,2455.3,0.33252037]
[1747611729020,4.07198005,2455.9,2455.3,4.62273387]
[1747611729221,4.07232448,2455.6,2455.5,0.55]
[1747611729402,4.07232448,2455.6,2455.5,9.355]
[1747611730084,0.14,2456.1,2455.7,0.55]
[1747611730283,0.14,2456.1,2455.9,1.3035]
[1747611730485,0.14,2456.1,2456.0,18.18]
[1747611730739,0.14,2456.1,2456.0,20.49324228]
[1747611731026,0.14,2456.1,2456.0,20.6204175]
[1747611731234,0.14,2456.1,2456.0,2.9904175]
[1747611731533,0.14,2456.1,2456.0,18.30817522]
[1747611732707,4.21149546,2456.1,2456.0,18.30817522]
[1747611733111,4.21149546,2456.1,2456.0,8.93317522]
[1747611733310,4.21149546,2456.1,2456.0,8.806]
[1747611734305,4.84846123,2456.0,2455.9,9.13752037]
[1747611734500,4.84846123,2456.0,2455.9,0.33252037]
[1747611734701,4.89936826,2456.0,2455.9,0.33252037]
[1747611734903,12.89936826,2456.0,2455.9,0.33252037]
[1747611735109,4.07199283,2455.8,2455.4,8.805]
[1747611735311,4.07249032,2455.5,2455.4,8.805]
[1747611737732,4.89129032,2455.5,2455.4,8.805]
[1747611737931,4.07348568,2454.9,2454.8,0.33252037]
[1747611738138,4.07348568,2454.9,2454.8,9.13752037]
[1747611739237,4.89048568,2454.9,2454.8,9.13752037]
[1747611739601,4.07348568,2454.9,2454.8,9.13752037]
[1747611740498,4.07448152,2454.3,2454.2,8.806]
[1747611740905,4.12541417,2454.3,2454.2,8.806]
[1747611741203,6.12,2455.1,2454.2,8.806]
[1747611741412,4.07376629,2454.8,2454.3,0.55]
[1747611741663,4.07376063,2454.8,2454.3,0.55]
[1747611741823,4.07376063,2454.8,2454.4,0.8308]
[1747611742437,4.0737398,2454.8,2454.4,0.8308]
[1747611742638,4.07336211,2455.0,2454.4,0.8308]
[1747611742639,4.0726431,2455.5,2454.7,0.55]
[1747611742934,4.85299236,2455.7,2454.9,0.55]
[1747611743140,4.85299236,2455.7,2455.1,0.55]
[1747611743341,4.07294015,2455.3,2455.1,0.55]
[1747611743511,4.07294015,2455.3,2455.1,2.39380299]
[1747611743914,0.14,2456.1,2455.3,0.55]
[1747611744113,0.14,2456.1,2455.7,0.55]
[1747611744506,4.07198385,2455.9,2455.7,0.55]
[1747611744728,4.07199283,2455.8,2455.7,0.55]
[1747611745127,4.07166123,2456.0,2455.7,0.55]
[1747611745323,4.21156256,2456.1,2455.7,0.55]
[1747611745648,0.14,2456.1,2455.7,0.55]
[1747611745840,0.14,2456.1,2455.8,0.54228133]
[1747611746148,0.14,2456.1,2456.0,0.55]
[1747611746350,4.21149546,2456.1,2456.0,0.55]
[1747611747043,4.07166123,2456.0,2455.9,35.789]
[1747611747450,4.07166123,2456.0,2455.9,17.587]
[1747611747816,4.07166123,2456.0,2455.9,8.807]
[1747611749343,4.07232448,2455.6,2455.5,0.33252037]
[1747611749527,4.07232448,2455.6,2455.5,9.13852037]
[1747611749724,4.88413091,2455.6,2455.5,0.33252037]
[1747611749971,4.83322448,2455.6,2455.5,0.33252037]
[1747611750128,4.07265618,2455.4,2455.3,8.806]
[1747611752114,4.07265618,2455.4,2455.2,17.587]
[1747611752115,4.07282205,2455.3,2455.2,17.587]
[1747611752315,4.07298794,2455.2,2455.1,8.806]
[1747611752720,4.07224767,2455.7,2455.2,0.55]
[1747611752929,4.07218593,2455.7,2455.2,0.55]
[1747611753149,4.07276746,2455.4,2455.2,9.356]
[1747611753325,4.07282205,2455.3,2455.2,9.356]
[1747611753650,4.07260954,2455.5,2455.2,9.356]
[1747611753827,4.07239255,2455.6,2455.3,0.9356]
[1747611754023,4.07260254,2455.5,2455.3,0.9356]
[1747611754435,4.07220893,2455.7,2455.3,0.9356]
[1747611754657,4.07251479,2455.5,2455.3,0.9356]
[1747611755920,4.07265618,2455.4,2455.3,1.4856]
[1747611756220,4.07282205,2455.3,2455.2,9.356]
[1747611756537,4.07259025,2455.5,2455.3,0.55]
[1747611757319,4.07265618,2455.4,2455.3,0.55]
[1747611759253,4.07282205,2455.3,2455.2,9.356]
[1747611760155,4.07214707,2455.8,2455.3,0.55]
[1747611760353,4.07227433,2455.7,2455.4,18.3777]
[1747611760555,4.07232448,2455.6,2455.5,0.55]
[1747611761050,4.07249032,2455.5,2455.4,18.3777]
[1747611761254,4.07249032,2455.5,2455.4,17.585]
[1747611762968,4.07282205,2455.3,2455.0,0.33252037]
[1747611763143,4.83325384,2455.1,2455.0,9.12552037]
[1747611763349,4.83325384,2455.1,2455.0,0.33252037]
[1747611764261,4.07348568,2454.9,2454.4,8.79]
[1747611764461,4.07348568,2454.9,2454.6,0.55]
[1747611764649,4.07337991,2455.0,2454.6,0.55]
[1747611764831,4.07318669,2455.1,2454.9,0.55]
[1747611765034,4.07315384,2455.1,2455.0,9.343]
[1747611765234,4.07315384,2455.1,2455.0,8.793]
[1747611765676,4.07459123,2454.3,2454.2,0.8238]
[1747611765832,4.07459123,2454.3,2454.2,9.6178]
[1747611766032,4.07459123,2454.3,2454.2,9.344]
[1747611766375,4.07459123,2454.3,2454.2,8.921262]
[1747611766672,4.07459123,2454.3,2454.2,9.471262]
[1747611766833,4.07459123,2454.3,2454.2,9.344]
[1747611767571,4.07459123,2454.3,2453.9,0.33252037]
[1747611767572,4.07481357,2454.1,2453.9,0.33252037]
[1747611767870,4.07481357,2454.1,2454.0,26.379]
[1747611769469,4.07481357,2454.1,2454.0,8.794]
[1747611769470,4.950051,2454.1,2454.0,8.794]
[1747611769636,4.95005443,2454.1,2454.0,8.794]
[1747611769837,12.89911357,2454.1,2454.0,8.794]
[1747611770069,4.07547784,2453.7,2453.6,8.79822459]
[1747611770235,12.07547784,2453.7,2453.6,8.79822459]
[1747611770775,12.87247784,2453.7,2453.6,0.00322459]
[1747611770958,21.64547784,2453.7,2453.6,0.00322459]
[1747611771767,12.87247784,2453.7,2453.6,0.00322459]
[1747611771965,21.64447784,2453.7,2453.6,0.00322459]
[1747611773075,21.64447784,2453.7,2453.4,0.00322459]
[1747611773076,4.07581006,2453.5,2453.4,0.00322459]
[1747611773240,4.12677142,2453.5,2453.4,0.00322459]
[1747611773435,4.07581006,2453.5,2453.4,0.00322459]
[1747611774665,4.1267631,2453.5,2453.4,0.00322459]
[1747611774867,4.07581006,2453.5,2453.4,0.00322459]
[1747611775069,4.12676542,2453.5,2453.4,0.00322459]
[1747611775659,12.12676542,2453.5,2453.4,0.00322459]
[1747611775873,12.83581006,2453.5,2453.4,0.00322459]
[1747611776077,4.07697325,2452.8,2452.7,8.80122459]
[1747611776299,4.07662291,2453.1,2452.8,1.3816]
[1747611776441,0.76,2453.6,2452.8,1.3816]
[1747611776648,4.07605501,2453.4,2452.9,4.07672561]
[1747611777058,4.07597411,2453.5,2452.9,4.07672561]
[1747611777356,4.83529434,2453.9,2453.1,0.55]
[1747611777357,4.07622225,2453.3,2453.1,0.55]
[1747611777569,4.07622225,2453.3,2452.8,0.8316]
[1747611777570,4.07643547,2453.2,2452.9,0.55]
[1747611777898,4.07646177,2453.2,2453.1,0.55]
[1747611778398,4.0762256,2453.3,2453.1,0.55]
[1747611778890,4.07630849,2453.2,2453.1,0.55]
[1747611779096,4.07622023,2453.3,2453.2,0.00322459]
[1747611779275,4.07614233,2453.3,2453.2,0.00322459]
[1747611780287,4.07536883,2453.8,2453.2,0.00322459]
[1747611780485,4.07596263,2453.5,2453.3,0.55]
[1747611780807,4.07597619,2453.4,2453.3,0.55]
[1747611780993,4.07614233,2453.3,2453.2,0.00322459]
[1747611781381,4.07614233,2453.3,2453.2,8.80222459]
[1747611783782,4.07614233,2453.3,2453.2,8.80322459]
[1747611783990,4.86464233,2453.3,2453.2,8.80322459]
[1747611785396,4.86464233,2453.3,2453.2,0.00322459]
[1747611786103,4.9156059,2453.3,2453.2,0.00322459]
[1747611787395,12.07614233,2453.3,2453.2,0.00322459]
[1747611788125,12.07647466,2453.1,2453.0,0.00322459]
[1747611788398,21.55057466,2453.1,2453.0,0.00322459]
[1747611790201,12.86557466,2453.1,2453.0,0.00322459]
[1747611790507,4.07647466,2453.1,2453.0,0.00322459]
[1747611791005,4.07680704,2452.9,2452.8,0.00322459]
[1747611791773,4.12776716,2452.9,2452.8,8.67222459]
[1747611792090,4.07680704,2452.9,2452.8,8.67222459]
[1747611794125,4.0763729,2453.2,2452.9,0.7892]
[1747611794327,4.87429715,2453.7,2452.9,0.7892]
[1747611794534,4.07664084,2453.0,2452.9,0.7892]
[1747611795795,4.07680704,2452.9,2452.8,26.82522459]
[1747611797224,4.07664084,2453.0,2452.8,26.82522459]
[1747611798429,4.07609271,2453.4,2452.9,4.62672996]
[1747611798596,4.07590816,2453.5,2453.1,0.55]
[1747611798798,0.14,2454.0,2453.1,0.55]
[1747611799012,4.07514568,2453.9,2453.5,0.55]
[1747611799215,4.07547784,2453.7,2453.6,8.67]
[1747611799429,4.07514568,2453.9,2453.6,9.67263]
[1747611799728,4.07532435,2453.8,2453.7,17.602]
[1747611800396,4.07532435,2453.8,2453.7,26.272]
[1747611800589,4.07532435,2453.8,2453.7,17.602]
[1747611800829,4.07547784,2453.7,2453.6,8.67322459]
[1747611802343,4.07532435,2453.8,2453.6,8.67322459]
[1747611802344,0.14,2454.0,2453.6,8.67322459]
[1747611802526,4.07546778,2453.8,2453.6,8.67322459]
[1747611802838,4.07547784,2453.7,2453.6,10.17060705]
[1747611803038,4.07547784,2453.7,2453.6,8.67322459]
[1747611803209,4.07547784,2453.7,2453.6,8.67222459]
[1747611804730,4.07539964,2453.8,2453.6,9.49195149]
[1747611805095,0.14,2454.0,2453.7,1.3295]
[1747611805296,0.14,2454.0,2453.9,0.55]
[1747611805501,0.14,2454.0,2453.9,0.85541672]
[1747611805813,4.07514568,2453.9,2453.8,17.601]
[1747611805995,0.14,2454.0,2453.9,0.55]
[1747611806200,0.14,2454.0,2453.9,1.3277]
[1747611806421,0.14,2454.0,2453.9,4.52630218]
[1747611806836,0.14,2454.0,2453.9,21.85030218]
[1747611807339,0.14,2454.0,2453.9,22.18282255]
[1747611807834,0.14,2454.0,2453.9,22.17382255]
[1747611808633,0.14,2454.0,2453.9,22.44251873]
[1747611809130,4.21497962,2454.0,2453.9,19.23191655]
[1747611809437,4.21497962,2454.0,2453.9,0.60121655]
[1747611809616,5.05902122,2454.0,2453.9,0.60121655]
[1747611809937,0.14,2454.0,2453.7,4.85977955]
[1747611810139,0.14,2454.0,2453.8,0.55]
[1747611810301,0.14,2454.0,2453.9,0.54097663]
[1747611811814,0.14,2454.0,2453.9,5.16612231]
[1747611812415,0.14,2454.0,2453.9,1.09097663]
[1747611813412,0.14,2454.0,2453.9,5.43442367]
[1747611815629,0.14,2454.0,2453.9,2.16137799]
[1747611815806,0.14,2454.0,2453.9,2.49389836]